bitfinex/quotes_ETHUSD_20230404
["timestamp","ask_amount","ask_price","bid_price","bid_amount"]
[1680587451120,0.2262533,1809.4,1809.1,0.5835105]
[1680587451837,0.2262533,1809.4,1809.1,0.8046105]
[1680587452238,0.2262533,1809.4,1809.1,0.5835105]
[1680587452945,0.2262533,1809.4,1809.1,0.8046105]
[1680587453114,0.2262533,1809.4,1809.1,1.90110376]
[1680587454242,0.2262533,1809.4,1809.1,2.35310376]
[1680587454571,0.2262533,1809.4,1809.1,1.90110376]
[1680587456267,0.2262533,1809.4,1809.1,2.35310376]
[1680587456843,0.2262533,1809.4,1809.1,1.90110376]
[1680587457043,0.2262533,1809.4,1809.1,2.35310376]
[1680587457765,0.2262533,1809.4,1809.2,0.67308]
[1680587458735,0.2262533,1809.4,1809.2,0.22108]
[1680587460470,0.2262533,1809.4,1809.2,0.50100838]
[1680587461781,0.2262533,1809.4,1809.2,0.22108]
[1680587462989,0.2262533,1809.4,1809.2,0.21816941]
[1680587465403,0.2262533,1809.4,1809.3,0.62600131]
[1680587468093,0.11774576,1809.5,1809.3,0.62600131]
[1680587470299,0.23,1809.4,1809.3,0.62600131]
[1680587472338,0.23,1809.4,1809.2,0.22109]
[1680587473727,0.23,1809.4,1809.1,0.452]
[1680587474027,0.23,1809.4,1809.2,0.22109]
[1680587475645,3.547,1809.4,1809.1,0.22109]
[1680587476062,3.547,1809.4,1809.0,0.2211]
[1680587476474,3.547,1809.4,1808.9,1.98574168]
[1680587476640,5.59503073,1809.4,1808.9,1.54349168]
[1680587476839,5.59703073,1809.4,1808.9,1.54349168]
[1680587480470,5.59703073,1809.4,1809.0,0.6242211]
[1680587481362,5.81809073,1809.4,1809.0,0.6242211]
[1680587483277,5.59703073,1809.4,1809.0,0.6242211]
[1680587484264,0.55970307,1809.3,1809.0,0.6242211]
[1680587484464,0.23,1809.2,1809.0,0.6242211]
[1680587484731,5.59703073,1809.4,1809.0,0.6242211]
[1680587485600,5.59703073,1809.4,1809.0,0.8453311]
[1680587485802,3.549,1809.4,1809.0,0.8453311]
[1680587486011,3.547,1809.4,1809.0,0.8453311]
[1680587489962,3.547,1809.4,1809.0,1.2875611]
[1680587490408,0.23,1809.4,1809.0,1.2875611]
[1680587491809,5.38464576,1809.5,1809.0,1.2875611]
[1680587492015,5.38464576,1809.5,1809.1,0.34985611]
[1680587493313,0.23,1809.4,1809.1,0.12875611]
[1680587493704,0.23,1809.4,1809.1,0.34985611]
[1680587494557,0.23,1809.4,1809.1,0.12875611]
[1680587494718,0.23,1809.4,1809.1,0.34985611]
[1680587495456,0.23,1809.4,1809.2,0.62424508]
[1680587496415,0.23,1809.4,1809.2,0.07530012]
[1680587496628,0.23,1809.4,1809.1,0.12875611]
[1680587499159,0.23,1809.4,1809.0,0.2211]
[1680587500809,0.23,1809.4,1809.0,0.6731]
[1680587501553,0.23,1809.4,1809.0,1.11533]
[1680587502660,0.23,1809.4,1809.0,0.6731]
[1680587502805,5.38464576,1809.5,1809.0,0.6731]
[1680587503005,5.38464576,1809.5,1809.1,0.2884]
[1680587503534,5.38464576,1809.5,1809.1,0.28841]
[1680587510382,5.38464576,1809.5,1809.2,0.62424508]
[1680587511450,5.38464576,1809.5,1809.1,0.2884]
[1680587513280,5.38464576,1809.5,1809.1,0.7306]
[1680587513968,5.38464576,1809.5,1809.1,0.2884]
[1680587514697,0.23,1809.4,1809.0,1.53749168]
[1680587514866,0.23,1809.4,1809.0,0.22111]
[1680587516369,0.23,1809.4,1808.9,1.33735499]
[1680587516576,4.5664453,1809.4,1808.9,1.55847499]
[1680587516772,4.7875053,1809.4,1808.9,1.10647499]
[1680587516977,4.7875053,1809.4,1808.9,0.88535499]
[1680587517664,4.7875053,1809.4,1808.9,1.10647499]
[1680587517864,4.7875053,1809.4,1808.9,1.10047499]
[1680587518065,0.47875053,1809.3,1808.9,1.10047499]
[1680587518311,0.23,1809.2,1808.9,1.10047499]
[1680587518457,0.23,1809.2,1808.9,0.87935499]
[1680587518963,0.23,1809.2,1808.9,0.01497331]
[1680587520200,0.23,1809.2,1808.9,0.87935499]
[1680587520375,0.23,1809.2,1808.9,0.23609331]
[1680587521261,0.23,1809.2,1808.9,0.01497331]
[1680587522297,0.23,1809.2,1808.9,0.23609331]
[1680587522475,0.23,1809.2,1808.9,0.01497331]
[1680587522856,0.23,1809.3,1808.9,0.01497331]
[1680587523060,0.76770683,1809.3,1808.9,0.01497331]
[1680587523490,0.76770683,1809.3,1808.9,0.23609331]
[1680587524774,0.76770683,1809.3,1808.9,1.10047499]
[1680587525461,0.76770683,1809.3,1809.0,0.80956056]
[1680587535141,0.23,1809.3,1809.0,1.03067056]
[1680587535310,0.23,1809.3,1809.0,1.47290056]
[1680587536322,0.23,1809.3,1809.0,1.03067056]
[1680587538258,0.23,1809.3,1809.0,2.33728224]
[1680587538422,0.23,1809.4,1809.2,0.22109]
[1680587539343,0.22706787,1809.4,1809.2,0.22109]
[1680587540421,0.22706787,1809.4,1809.3,0.80144735]
[1680587550383,0.22706787,1809.4,1809.1,0.22509]
[1680587550597,0.22706787,1809.4,1809.1,0.85572717]
[1680587553997,0.22706787,1809.4,1809.0,6.12528168]
[1680587554172,0.22706787,1809.4,1809.0,0.87238168]
[1680587554372,0.22706787,1809.4,1808.9,3.17686389]
[1680587554604,0.22706787,1809.4,1808.9,3.39798389]
[1680587555187,0.22706787,1809.4,1808.9,2.24547499]
[1680587555402,0.22706787,1809.4,1809.0,0.80106151]
[1680587555564,0.22706787,1809.4,1809.0,1.02817151]
[1680587555763,0.22706787,1809.4,1809.0,1.02217151]
[1680587556996,4.47121966,1809.4,1809.0,1.02217151]
[1680587557204,4.47121966,1809.4,1809.0,1.02817151]
[1680587558071,4.47121966,1809.4,1809.0,0.80706151]
[1680587558272,4.47121966,1809.4,1809.0,0.80106151]
[1680587558613,4.47121966,1809.4,1809.0,1.02217151]
[1680587558768,4.47121966,1809.4,1809.0,0.80506151]
[1680587558967,4.47121966,1809.4,1809.0,1.02417151]
[1680587559201,4.47121966,1809.4,1809.0,1.02617151]
[1680587559607,4.47121966,1809.4,1809.0,1.02417151]
[1680587559790,4.47121966,1809.4,1809.0,1.02617151]
[1680587560204,4.47121966,1809.4,1809.0,1.02417151]
[1680587560402,4.47121966,1809.4,1809.0,0.80306151]
[1680587560601,4.47121966,1809.4,1809.0,0.80106151]
[1680587561209,15.71760001,1809.5,1809.3,0.689]
[1680587561368,5.50640001,1809.5,1809.3,0.91006]
[1680587561563,5.50640001,1809.5,1809.3,0.22106]
[1680587562018,5.50640001,1809.5,1809.2,0.66325]
[1680587562177,5.50640001,1809.5,1809.2,0.88491317]
[1680587562879,5.50422182,1809.5,1809.2,0.88491317]
[1680587564007,5.50422182,1809.5,1809.2,0.44274317]
[1680587569542,5.50422182,1809.5,1809.2,0.22108]
[1680587570138,0.10982182,1809.5,1809.2,0.22108]
[1680587570341,0.10782182,1809.5,1809.4,1.373]
[1680587570645,0.10782182,1809.5,1809.3,2.80765258]
[1680587570847,0.10782182,1809.5,1809.4,0.22106]
[1680587571498,0.10782182,1809.5,1809.3,2.1544909]
[1680587571702,0.10782182,1809.5,1809.3,2.82983816]
[1680587571903,0.10782182,1809.5,1809.3,3.05089816]
[1680587572211,0.10782182,1809.5,1809.3,2.36589816]
[1680587572407,0.10782182,1809.5,1809.3,2.36389816]
[1680587572607,0.10782182,1809.5,1809.3,2.36189816]
[1680587573636,0.10782182,1809.5,1809.3,2.35989816]
[1680587575358,0.10782182,1809.5,1809.3,0.8002709]
[1680587575721,0.23,1809.4,1809.3,0.8002709]
[1680587576327,0.23,1809.4,1809.1,0.22109]
[1680587576637,0.23,1809.4,1809.2,0.22109]
[1680587584436,0.10782182,1809.5,1809.3,0.01497]
[1680587584775,0.10782182,1809.5,1809.4,0.66319]
[1680587585035,0.10782182,1809.5,1809.4,0.22106]
[1680587585682,0.10561827,1809.5,1809.4,1.09418048]
[1680587586757,0.10561827,1809.5,1809.4,0.87312048]
[1680587586942,0.10561827,1809.5,1809.4,1.09418048]
[1680587587373,0.10561827,1809.5,1809.4,0.87312048]
[1680587587584,0.10561827,1809.5,1809.4,1.09418048]
[1680587588185,0.10561827,1809.5,1809.4,0.87312048]
[1680587588486,0.10561827,1809.5,1809.3,0.303854]
[1680587597157,0.10561827,1809.5,1809.3,0.067824]
[1680587597377,0.10561827,1809.5,1809.1,13.33318058]
[1680587597600,0.10561827,1809.5,1809.1,12.18067168]
[1680587597800,0.10561827,1809.5,1809.1,13.33318058]
[1680587598704,0.10561827,1809.5,1809.1,12.18067168]
[1680587600500,0.10561827,1809.5,1809.2,0.82356359]
[1680587600806,0.10561827,1809.5,1809.2,1.04464359]
[1680587600968,0.23,1809.4,1809.2,1.04464359]
[1680587602065,0.10561827,1809.5,1809.3,0.69997]
[1680587602265,0.10561827,1809.5,1809.4,0.22106]
[1680587607001,0.10561827,1809.5,1809.3,1.78541168]
[1680587608608,0.10561827,1809.5,1809.3,2.22756168]
[1680587609117,0.10561827,1809.5,1809.3,1.36318]
[1680587609323,0.10561827,1809.5,1809.3,2.35258547]
[1680587609533,0.10358601,1809.5,1809.3,1.91043547]
[1680587610068,0.10358601,1809.5,1809.3,2.77481715]
[1680587610397,0.10358601,1809.5,1809.3,1.91043547]
[1680587611394,0.10358601,1809.5,1809.4,0.19104355]
[1680587612645,0.33358601,1809.5,1809.3,1.22544547]
[1680587612801,3.65058601,1809.5,1809.2,2.38494527]
[1680587613006,0.23,1809.4,1809.2,1.91502527]
[1680587613243,0.23,1809.4,1809.2,1.90902527]
[1680587613904,0.23,1809.4,1809.2,1.91102527]
[1680587614105,0.23,1809.4,1809.2,1.91302527]
[1680587614307,0.23,1809.4,1809.2,2.75357869]
[1680587614523,0.10358601,1809.5,1809.2,2.75357869]
[1680587624144,0.10358601,1809.5,1809.2,2.31139869]
[1680587624346,0.10358601,1809.5,1809.2,1.68794527]
[1680587624579,0.10358601,1809.5,1809.2,0.82356359]
[1680587624580,0.23,1809.4,1809.2,0.82356359]
[1680587625281,3.547,1809.4,1809.2,0.82356359]
[1680587625591,3.547,1809.4,1809.0,0.87038168]
[1680587625891,4.0026646,1809.4,1809.0,1.09149168]
[1680587626491,4.0026646,1809.4,1809.1,0.59411072]
[1680587634316,0.6536,1809.2,1809.1,0.59411072]
[1680587634470,3.9706,1809.2,1809.1,0.59411072]
[1680587635485,3.9706,1809.2,1808.9,2.17026968]
[1680587635795,3.9706,1809.2,1808.9,2.16426968]
[1680587636472,3.9706,1809.2,1809.0,0.62812059]
[1680587636672,0.39706,1809.1,1809.0,0.62812059]
[1680587636932,0.62706,1809.1,1809.0,0.62812059]
[1680587638398,0.62706,1809.1,1808.8,0.22113]
[1680587638596,0.23,1809.0,1808.8,0.22113]
[1680587638833,0.23,1809.0,1808.7,1.98582168]
[1680587639320,0.23,1809.1,1808.7,1.98582168]
[1680587639530,0.60426,1809.1,1808.7,1.98582168]
[1680587639973,0.60426,1809.1,1808.7,1.54352168]
[1680587641833,0.60085628,1809.1,1808.7,0.67914]
[1680587642136,0.60085628,1809.1,1808.7,1.54352168]
[1680587643334,0.22659628,1809.1,1808.7,3.68872432]
[1680587643493,0.22659628,1809.1,1808.8,0.452]
[1680587643699,0.22659628,1809.1,1808.7,3.23672432]
[1680587643700,0.22659628,1809.1,1808.9,0.22112]
[1680587645600,0.22659628,1809.1,1809.0,0.58922448]
[1680587646533,0.22659628,1809.1,1808.8,0.67312]
[1680587647212,0.22659628,1809.1,1808.8,1.04199043]
[1680587647543,0.22659628,1809.1,1808.8,0.58999043]
[1680587649700,0.22659628,1809.1,1808.8,0.22112]
[1680587655729,0.22659628,1809.1,1808.8,0.67312]
[1680587655915,0.22659628,1809.1,1808.8,0.22112]
[1680587656116,0.22659628,1809.1,1808.8,0.67312]
[1680587656316,0.22659628,1809.1,1808.8,0.22112]
[1680587656518,0.22659628,1809.1,1808.8,0.6634]
[1680587659413,0.22659628,1809.1,1808.8,0.93027817]
[1680587659612,3.317,1809.2,1808.8,0.93027817]
[1680587660269,3.317,1809.2,1808.8,0.93227817]
[1680587660475,3.317,1809.2,1808.9,0.58042701]
[1680587660816,3.317,1809.2,1809.0,0.22111]
[1680587661468,3.317,1809.2,1808.9,0.80153701]
[1680587662914,3.31303384,1809.2,1808.9,0.80153701]
[1680587663410,3.31303384,1809.2,1808.9,0.95320653]
[1680587665869,3.29833607,1809.2,1808.9,0.95320653]
[1680587668107,0.23,1809.1,1808.9,0.73209653]
[1680587668419,0.23,1809.1,1808.9,0.58042701]
[1680587669523,0.23,1809.1,1808.8,1.35838985]
[1680587669705,0.23,1809.1,1808.8,1.27748985]
[1680587670502,0.23,1809.1,1808.8,1.05635985]
[1680587671421,0.23,1809.1,1808.8,1.27748985]
[1680587671634,3.30633607,1809.2,1808.8,1.27748985]
[1680587672003,3.30633607,1809.2,1808.8,1.05635985]
[1680587672197,3.30633607,1809.2,1808.8,1.08552168]
[1680587672624,3.30633607,1809.2,1808.8,2.23803058]
[1680587673036,0.23,1809.1,1808.9,0.86438168]
[1680587673221,0.23,1809.1,1808.9,1.08550168]
[1680587674693,0.23,1809.1,1808.9,0.86438168]
[1680587674921,0.23,1809.1,1808.9,1.08818374]
[1680587675320,0.23,1809.1,1808.9,1.30930374]
[1680587675633,0.23,1809.1,1809.0,0.6370789]
[1680587679261,0.23,1809.1,1809.0,1.50146058]
[1680587680164,0.238,1809.1,1809.0,0.6370789]
[1680587680363,0.23,1809.1,1809.0,0.6370789]
[1680587689475,0.23,1809.1,1809.0,1.50146058]
[1680587690536,0.238,1809.1,1809.0,1.50146058]
[1680587690878,0.23,1809.1,1809.0,1.50146058]
[1680587691377,0.23,1809.1,1809.0,0.6370789]
[1680587693776,0.22657062,1809.1,1809.0,0.6370789]
[1680587694366,0.22657062,1809.1,1809.0,1.50146058]
[1680587695574,0.22657062,1809.1,1809.0,0.6370789]
[1680587700837,0.22657062,1809.1,1809.0,1.50146058]
[1680587701135,0.22657062,1809.1,1809.0,0.6370789]
[1680587701371,0.22657062,1809.1,1809.0,1.50146058]
[1680587702793,0.22657062,1809.1,1809.0,0.6370789]
[1680587703096,0.22657062,1809.1,1809.0,1.50146058]
[1680587703855,0.22657062,1809.1,1809.0,0.6370789]
[1680587706615,3.87739736,1809.1,1809.0,0.6370789]
[1680587706830,3.52490669,1809.1,1809.0,0.6370789]
[1680587707581,0.22657062,1809.1,1809.0,0.6370789]
[1680587707911,0.22657062,1809.1,1808.8,0.86438168]
[1680587708077,0.22657062,1809.1,1808.7,2.24403058]
[1680587708478,0.22657062,1809.1,1808.7,2.69603058]
[1680587708909,0.22657062,1809.1,1808.9,0.58754928]
[1680587709074,3.87739736,1809.1,1808.9,0.58754928]
[1680587709276,3.52490669,1809.1,1808.9,0.58754928]
[1680587709689,3.52490669,1809.1,1808.7,1.54352168]
[1680587709890,3.52490669,1809.1,1808.7,1.53752168]
[1680587710098,3.52490669,1809.1,1808.7,1.54152168]
[1680587710323,3.52490669,1809.1,1808.7,1.31638168]
[1680587710506,3.52490669,1809.1,1808.7,1.08553168]
[1680587710894,3.52490669,1809.1,1808.7,1.53753168]
[1680587711174,3.52490669,1809.1,1808.7,3.4711979]
[1680587711370,3.52490669,1809.1,1808.7,3.4771979]
[1680587713193,3.52490669,1809.1,1808.7,3.0251979]
[1680587713394,3.52490669,1809.1,1808.7,3.4771979]
[1680587713707,3.52490669,1809.1,1808.7,3.0251979]
[1680587715374,3.52490669,1809.1,1808.7,1.09153168]
[1680587715735,3.52490669,1809.1,1808.7,1.08553168]
[1680587718335,3.52490669,1809.1,1808.7,1.53753168]
[1680587719050,3.52490669,1809.1,1808.7,1.08553168]
[1680587720455,3.52490669,1809.1,1808.8,0.58782823]
[1680587720654,4.86201193,1809.1,1808.8,0.58782823]
[1680587722643,3.52490669,1809.1,1808.8,0.80895823]
[1680587724668,3.52490669,1809.1,1808.8,0.58782823]
[1680587728328,3.52490669,1809.1,1808.8,0.80896823]
[1680587730858,3.52490669,1809.1,1808.8,0.58782823]
[1680587734753,3.52490669,1809.1,1808.8,0.80896823]
[1680587735065,0.2230462,1809.1,1808.8,1.02210322]
[1680587736078,0.2230462,1809.1,1808.8,1.8864849]
[1680587736768,0.2230462,1809.1,1808.8,1.02210322]
[1680587738447,0.2230462,1809.1,1808.8,0.80096322]
[1680587738645,0.2230462,1809.1,1808.9,0.08009632]
[1680587739462,0.2230462,1809.1,1809.0,0.6881187]
[1680587740465,0.2230462,1809.1,1808.8,1.29865667]
[1680587741052,0.2230462,1809.1,1808.8,1.07751667]
[1680587742691,0.2230462,1809.1,1808.8,0.21313499]
[1680587743255,3.317,1809.0,1808.7,1.32238168]
[1680587743463,3.317,1809.0,1808.7,1.54353168]
[1680587747902,3.317,1809.0,1808.7,2.69604058]
[1680587749999,3.317,1809.0,1808.8,0.86438168]
[1680587750581,3.317,1809.0,1808.9,0.67868617]
[1680587750901,3.547,1809.0,1808.9,0.67868617]
[1680587751454,3.547,1809.0,1808.8,0.87038168]
[1680587751693,3.547,1809.0,1808.8,0.86438168]
[1680587754174,3.547,1809.0,1808.8,1.08552168]
[1680587754357,3.547,1809.0,1808.8,1.08752168]
[1680587754905,3.547,1809.0,1808.8,1.08552168]
[1680587755459,3.547,1809.0,1808.8,1.08752168]
[1680587756163,3.547,1809.0,1808.8,0.86638168]
[1680587756511,3.547,1809.0,1808.8,0.86438168]
[1680587757591,3.547,1809.0,1808.8,1.08551168]
[1680587757793,3.547,1809.0,1808.8,1.08752168]
[1680587760935,3.547,1809.0,1808.8,0.86438168]
[1680587765539,3.547,1809.0,1808.9,0.60689733]
[1680587766751,3.547,1809.0,1808.8,0.87038168]
[1680587766942,3.547,1809.0,1808.8,0.86438168]
[1680587767945,0.22747928,1809.0,1808.8,1.79739474]
[1680587768239,13.44294575,1809.2,1808.8,1.79739474]
[1680587768240,13.43694575,1809.2,1808.8,1.79739474]
[1680587768743,13.43694575,1809.2,1808.8,1.13398474]
[1680587769198,13.43694575,1809.2,1808.8,1.35511474]
[1680587769698,13.43694575,1809.2,1808.8,1.13398474]
[1680587769897,13.43694575,1809.2,1808.8,0.86438168]
[1680587770098,0.23,1809.1,1808.8,0.86438168]
[1680587772834,0.23,1809.1,1808.8,0.86093904]
[1680587776679,0.23,1809.1,1808.8,1.08207904]
[1680587777293,0.23,1809.1,1808.8,0.86093904]
[1680587777490,0.23,1809.1,1808.8,1.10748383]
[1680587777884,0.23,1809.1,1808.8,1.32862383]
[1680587778266,0.23,1809.1,1808.8,1.10748383]
[1680587778467,0.23,1809.1,1808.8,1.32862383]
[1680587780569,0.23,1809.1,1808.9,0.67710347]
[1680587781624,0.23,1809.1,1808.8,1.08206904]
[1680587782277,13.44494575,1809.2,1808.8,1.08206904]
[1680587782278,0.01,1809.2,1808.9,0.86093904]
[1680587782625,0.01,1809.2,1809.0,1.08204904]
[1680587782626,0.008,1809.2,1809.0,1.08204904]
[1680587783418,2.808,1809.3,1809.0,1.08204904]
[1680587783723,2.808,1809.3,1809.0,0.22111]
[1680587795674,2.808,1809.3,1809.1,0.66748784]
[1680587797425,6.125,1809.3,1809.1,0.66748784]
[1680587797629,6.11639156,1809.3,1809.1,0.66748784]
[1680587798263,6.11639156,1809.3,1809.1,0.88858784]
[1680587798467,6.11639156,1809.3,1809.1,0.66748784]
[1680587798629,6.11639156,1809.3,1809.1,0.88858784]
[1680587799767,6.11639156,1809.3,1809.1,0.66748784]
[1680587800664,2.79939156,1809.3,1809.1,0.88858784]
[1680587800867,2.79739156,1809.3,1809.1,0.88858784]
[1680587803068,2.79739156,1809.3,1809.1,0.66748784]
[1680587803450,2.79739156,1809.3,1809.1,0.88858784]
[1680587804272,2.79739156,1809.3,1809.1,0.66748784]
[1680587805275,2.79739156,1809.3,1809.1,0.88858784]
[1680587806636,2.79739156,1809.3,1809.1,0.88626293]
[1680587822621,3.96203072,1809.3,1809.1,0.88626293]
[1680587825335,2.79739156,1809.3,1809.1,0.88626293]
[1680587830674,2.79421217,1809.3,1809.1,0.88626293]
[1680587830836,2.79421217,1809.3,1809.1,0.66516293]
[1680587834557,2.79421217,1809.3,1808.9,2.01944794]
[1680587834740,2.79421217,1809.3,1808.9,2.01344794]
[1680587835546,2.79421217,1809.3,1809.0,0.80436513]
[1680587836969,2.79421217,1809.3,1809.0,1.66530417]
[1680587837274,4.25853339,1809.3,1809.0,0.80436513]
[1680587837619,2.79421217,1809.3,1809.0,0.80436513]
[1680587839775,6.34003792,1809.3,1809.0,0.80436513]
[1680587839929,6.34203792,1809.3,1809.0,0.80436513]
[1680587840280,0.23,1809.2,1809.0,0.80436513]
[1680587840567,3.547,1809.2,1809.0,0.80436513]
[1680587840802,4.20420479,1809.2,1809.0,0.80436513]
[1680587841456,4.20420479,1809.2,1808.8,0.88191317]
[1680587841797,3.547,1809.2,1808.8,1.09705317]
[1680587842155,3.547,1809.2,1808.8,0.87591317]
[1680587842355,3.547,1809.2,1808.8,1.09704317]
[1680587842600,3.547,1809.2,1808.9,0.80479232]
[1680587843683,3.547,1809.2,1808.8,1.10304317]
[1680587844013,3.547,1809.2,1808.8,1.09704317]
[1680587844686,5.16706579,1809.2,1808.8,1.08206904]
[1680587844871,5.16906579,1809.2,1808.8,1.08606904]
[1680587845196,5.16906579,1809.2,1808.8,1.08206904]
[1680587846209,7.93508797,1809.2,1808.8,1.08206904]
[1680587851712,7.93508797,1809.2,1808.8,0.22113]
[1680587855507,7.93508797,1809.2,1808.9,0.76932607]
[1680587855712,7.93508797,1809.2,1808.9,0.99044607]
[1680587864596,3.317,1809.0,1808.9,0.76932607]
[1680587864902,3.547,1809.0,1808.9,0.76932607]
[1680587865558,3.547,1809.0,1808.8,0.22713]
[1680587865763,3.547,1809.0,1808.8,0.22113]
[1680587866424,3.547,1809.0,1808.7,1.31893904]
[1680587866588,3.547,1809.0,1808.7,1.54007904]
[1680587869519,0.23,1809.0,1808.7,1.54007904]
[1680587870279,0.23,1809.0,1808.7,3.27755741]
[1680587870500,0.23,1809.0,1808.8,0.7697533]
[1680587872043,0.23,1809.0,1808.8,0.9908833]
[1680587879168,0.23,1809.0,1808.8,0.9908833]
[1680587880664,0.23,1809.0,1808.8,0.7697533]
[1680587881867,0.23,1809.0,1808.8,0.9908933]
[1680587882073,0.23,1809.0,1808.8,0.7697533]
[1680587882372,0.23,1809.0,1808.8,0.9908933]
[1680587885477,0.23,1809.0,1808.8,1.85183234]
[1680587885773,3.317,1809.1,1808.8,2.24229546]
[1680587885995,3.317,1809.1,1808.8,1.38735642]
[1680587886200,3.317,1809.1,1808.8,1.38135642]
[1680587888300,3.317,1809.1,1808.8,2.24229546]
[1680587888599,3.317,1809.1,1808.8,1.38735642]
[1680587888801,3.317,1809.1,1808.8,0.9908933]
[1680587888987,3.317,1809.1,1808.8,0.7697533]
[1680587889821,3.317,1809.1,1808.8,1.63069234]
[1680587890116,3.317,1809.1,1808.8,0.7697533]
[1680587894724,3.317,1809.1,1808.8,1.63069234]
[1680587895017,3.317,1809.1,1808.8,0.7697533]
[1680587900310,4.19066358,1809.1,1808.8,0.7697533]
[1680587901606,0.23,1809.0,1808.8,0.7697533]
[1680587903928,3.31308341,1808.9,1808.8,0.7697533]
[1680587904245,3.54308341,1808.9,1808.8,0.7697533]
[1680587904397,3.76420341,1808.9,1808.8,0.7697533]
[1680587904597,4.20972375,1808.9,1808.6,0.86493904]
[1680587904827,4.20972375,1808.9,1808.6,0.86093904]
[1680587904828,0.23,1808.8,1808.6,0.86093904]
[1680587905728,0.23,1808.8,1808.7,0.64030227]
[1680587907457,3.89816633,1808.8,1808.7,0.64030227]
[1680587915386,3.54308341,1808.8,1808.7,0.64030227]
[1680587915538,3.54308341,1808.8,1808.7,0.86145227]
[1680587916264,3.54308341,1808.8,1808.7,0.64030227]
[1680587916465,0.23,1808.8,1808.7,0.64030227]
[1680587916765,0.23,1808.8,1808.7,0.86145227]
[1680587917168,0.23,1808.8,1808.7,0.64030227]
[1680587925270,0.22689767,1808.8,1808.7,0.64030227]
[1680587940671,3.317,1808.9,1808.7,0.64030227]
[1680587940867,3.317,1808.9,1808.7,0.86145227]
[1680587941407,3.317,1808.9,1808.7,0.64030227]
[1680587943411,3.317,1808.9,1808.7,1.50124131]
[1680587943798,0.01,1809.0,1808.7,2.05568133]
[1680587944116,3.317,1809.1,1808.8,0.86093904]
[1680587944313,3.317,1809.1,1808.8,1.08206904]
[1680587944682,3.317,1809.1,1808.8,1.78821582]
[1680587944925,3.317,1809.1,1808.8,2.15984729]
[1680587945481,3.31460806,1809.1,1808.8,2.16384729]
[1680587945682,3.31460806,1809.1,1808.8,2.16584729]
[1680587945928,3.31460806,1809.1,1808.8,1.94471729]
[1680587946230,3.31460806,1809.1,1808.8,1.94271729]
[1680587946523,3.31460806,1809.1,1808.8,2.16385729]
[1680587946734,3.31460806,1809.1,1808.8,2.16585729]
[1680587947431,3.31460806,1809.1,1808.8,1.08377825]
[1680587947628,3.31460806,1809.1,1808.8,1.29891825]
[1680587947934,3.31460806,1809.1,1808.8,2.15985729]
[1680587948234,3.31460806,1809.1,1808.9,0.21598573]
[1680587948701,3.31460806,1809.1,1808.9,0.68574575]
[1680587949131,6.11460806,1809.1,1808.9,0.68574575]
[1680587949315,6.11660806,1809.1,1808.9,0.68574575]
[1680587949721,6.11660806,1809.1,1808.7,1.20022906]
[1680587950719,6.11660806,1809.1,1808.7,1.19422906]
[1680587951087,6.33770806,1809.1,1808.7,1.19422906]
[1680587951286,6.11660806,1809.1,1808.7,1.19422906]
[1680587951501,6.33770806,1809.1,1808.7,1.19422906]
[1680587951732,6.11660806,1809.1,1808.7,1.19422906]
[1680587951921,6.33770806,1809.1,1808.7,1.19422906]
[1680587956533,11.02776905,1809.1,1808.6,16.24864794]
[1680587956737,0.23,1809.0,1808.6,15.09613904]
[1680587957037,3.31460806,1808.9,1808.6,15.09613904]
[1680587957241,3.31460806,1808.9,1808.6,0.86893904]
[1680587957440,3.31460806,1808.9,1808.6,0.86693904]
[1680587958430,3.31460806,1808.9,1808.6,0.86493904]
[1680587959344,3.31460806,1808.9,1808.6,0.86693904]
[1680587960652,3.31460806,1808.9,1808.7,0.6475495]
[1680587962720,0.00774575,1808.8,1808.7,0.6475495]
[1680587966713,3.31460806,1808.9,1808.7,0.6475495]
[1680587975974,5.2953,1809.0,1808.7,0.8686995]
[1680587975975,8.6123,1809.0,1808.7,0.8686995]
[1680587976193,3.549,1809.0,1808.7,0.6475495]
[1680587976393,4.18267458,1809.0,1808.7,0.6475495]
[1680587981511,3.547,1809.0,1808.7,0.6475495]
[1680587983218,3.547,1809.0,1808.7,1.50848854]
[1680587983928,3.547,1809.0,1808.7,0.6475495]
[1680587985118,3.547,1809.0,1808.7,1.50848854]
[1680587986478,3.547,1809.0,1808.7,0.6475495]
[1680587991151,3.547,1809.0,1808.7,1.50848854]
[1680587998034,2.802,1809.1,1808.7,1.79730428]
[1680587998202,3.02111,1809.1,1808.7,1.79730428]
[1680587999007,2.8,1809.1,1808.7,1.79730428]
[1680587999203,3.0211,1809.1,1808.7,1.79730428]
[1680587999610,2.8,1809.1,1808.7,1.79730428]
[1680588000519,3.0211,1809.1,1808.7,1.79730428]
[1680588001414,2.8,1809.1,1808.7,1.79730428]
[1680588001739,2.8,1809.1,1808.7,3.17096318]
[1680588001942,2.8,1809.1,1808.8,1.72766947]
[1680588002244,2.79753757,1809.1,1808.8,1.95478947]
[1680588002450,2.79753757,1809.1,1808.8,3.1222725]
[1680588002760,2.79753757,1809.1,1808.9,0.86093904]
[1680588002917,2.79753757,1809.1,1808.9,1.17316629]
[1680588003246,2.79753757,1809.1,1808.9,1.39428629]
[1680588003648,2.79753757,1809.1,1808.9,1.39628629]
[1680588003853,2.79753757,1809.1,1808.9,1.39828629]
[1680588004025,2.79753757,1809.1,1809.0,1.85648138]
[1680588004230,2.79753757,1809.1,1809.0,6.24293853]
[1680588004551,2.79753757,1809.1,1809.0,7.73616025]
[1680588004961,2.79753757,1809.1,1809.0,13.84050157]
[1680588006861,2.79753757,1809.1,1809.0,12.22476856]
[1680588007429,2.79753757,1809.1,1809.0,12.66699856]
[1680588008770,2.79753757,1809.1,1809.0,12.37901318]
[1680588014694,2.79753757,1809.1,1809.0,6.56301318]
[1680588014968,2.79753757,1809.1,1809.0,3.22065411]
[1680588015156,2.79753757,1809.1,1809.0,3.21865411]
[1680588022281,2.79753757,1809.1,1809.0,3.87315064]
[1680588024996,2.79753757,1809.1,1809.0,2.49515064]
[1680588026793,2.79550159,1809.1,1809.0,2.49515064]
[1680588027007,2.79550159,1809.1,1809.0,2.48915064]
[1680588029010,2.79550159,1809.1,1809.0,1.76983653]
[1680588038873,2.79550159,1809.1,1809.0,2.34617342]
[1680588039032,2.79550159,1809.1,1809.0,1.76983653]
[1680588039233,2.79550159,1809.1,1809.0,2.34617342]
[1680588043045,2.79550159,1809.1,1809.0,2.6341588]